Cogmind - Beta 14 @@@ ROGUE MODE // 2024.10.12 @ 00:47:09 Player: hoganstuff Result: Smashed by cave-in Performance ------------- Evolutions (0) 0 Regions Visited (4) 800 Robots Destroyed (11) 55 Value Destroyed (219) 219 Prototype IDs (3) 60 Alien Tech Used (0) 0 Bonus (300) 300 TOTAL SCORE: 1434 Bonus ------- Aligned with FarCom 300 Cogmind --------- Core Integrity 0/250 Matter 300/300 Energy 33/100 System Corruption 1% Temperature Cool (25) Movement Walking (120) Location -9/Mines Parts ------- > --- POWER (1) -------- (None) > --- PROPULSION (2) --- Aluminum Leg Aluminum Leg > --- UTILITY (2) ------ (None) > --- WEAPON (2) ------- YOLO Cannon > --- INVENTORY (5) ---- Small Battery (100) Light Assault Rifle Rocket Launcher Mining Laser Peak State ------------ > --- POWER ------------ Light Ion Engine > --- PROPULSION ------- Aluminum Leg Aluminum Leg > --- UTILITY ---------- Modified TNC Propulsion Shielding > --- WEAPON ----------- YOLO Cannon > --- INVENTORY -------- Heat Sink Light Assault Rifle Mining Laser [Rating: 30] Favorites ----------- Power Light Ion Engine Engine Light Ion Engine Power Core Light Nuclear Core Propulsion Aluminum Leg Leg Aluminum Leg Wheel Wheel Utility Heat Sink Device Heat Sink Processor Modified TNC Protection Propulsion Shielding Weapon Assault Rifle Energy Gun EM Pulse Gun Energy Cannon YOLO Cannon Ballistic Gun Assault Rifle Launcher Rocket Launcher Special Weapon Mining Laser Build | -11 -10 -10 -10 -9 ------- Run | Yrd Mat Min Exi Min Slots Evolved . | . . . . . Power . | . . . . . Propulsion . | . . . . . Utility . | . . . . . Weapon . | . . . . . Parts Attached 24 | 7 10 3 4 . Power 4 | 2 2 . . . Engine 3 | 2 1 . . . Core 1 | . 1 . . . Reactor . | . . . . . Propulsion 4 | 3 1 . . . Treads . | . . . . . Leg 3 | 2 1 . . . Wheel 1 | 1 . . . . Hover . | . . . . . Flight . | . . . . . Utility 5 | . 1 1 3 . Device 3 | . 1 . 2 . Storage . | . . . . . Processor 1 | . . . 1 . Hackware . | . . . . . Protection 1 | . . 1 . . Artifact . | . . . . . Weapon 11 | 2 6 2 1 . Energy Gun 1 | 1 . . . . Energy Cannon 1 | . . . 1 . Ballistic Gun 7 | 1 5 1 . . Ballistic Cannon . | . . . . . Launcher 1 | . . 1 . . Special Weapon 1 | . 1 . . . Impact Weapon . | . . . . . Slashing Weapon . | . . . . . Piercing Weapon . | . . . . . Special Melee Weapon . | . . . . . Unidentified Prototypes 3 | . . . 3 . Parts Lost 5 | . 1 1 . 3 Power 2 | . 1 . . 1 Propulsion . | . . . . . Utility 2 | . . . . 2 Weapon 1 | . . 1 . . Highest Loss Streak 3 | . 1 1 . 3 To Critical Strikes . | . . . . . Average Slot Usage (%) 87 | . 77 98 89 84 Engine 12 | . 8 14 14 14 Core 1 | . 5 . . . Leg 28 | . 28 28 28 28 Device 11 | . 7 14 13 13 Protection 9 | . . 13 14 14 Energy Cannon 4 | . . . 8 14 Ballistic Gun 16 | . 26 23 4 . Launcher 2 | . . 4 5 . Peak Build Rating 30 | 5 8 8 30 25 Average Rating 11 | 3 6 7 18 24 On Entrance 8 | . 5 6 8 25 Naked Turns . | . . . . . Heaviest Build 23 | 8 10 11 23 23 Greatest Support 20 | 20 20 20 20 20 Greatest Overweight (x) 1 | . . . 1 1 Average Overweight (x) . | . . . . 1 Largest Inventory Capacity 5 | 5 5 5 5 5 Average Capacity 5 | 5 5 5 5 5 Most Carried 5 | 4 5 5 5 4 Average Carried 3 | 1 4 4 3 3 Final Capacity 5 | 5 5 5 5 5 Final Carried 5 | 2 5 4 3 4 Class Distribution -------------------- 100% | Mutant Dominant Class ---------------- Mutant | -10/Materials Mutant | -10/Mines Mutant | -10/Exiles Mutant | -9/Mines Resources | -11 -10 -10 -10 -9 ----------- Run | Yrd Mat Min Exi Min Matter Collected 606 | 272 182 82 . 70 Remotely . | . . . . . Salvage Created 288 | 39 165 54 . 30 Parts 22 | 3 10 9 . . Haulers Intercepted . | . . . . . Recyclers Shooed . | . . . . . Parts Field Recycled . | . . . . . Retrieved Matter . | . . . . . Parts Self-Destructed . | . . . . . Prevented . | . . . . . Kills | -11 -10 -10 -10 -9 ------- Run | Yrd Mat Min Exi Min Combat Hostiles Destroyed 17 | 1 5 5 . 6 Guns 10 | 1 5 4 . . AOE 7 | . . 1 . 6 Classes Destroyed 3 | 1 1 . . 1 Swarmer 7 | . 2 5 . . Grunt 4 | 1 3 . . . Assembled 6 | . . . . 6 Best Kill Streak 6 | 1 2 3 . 6 Combat Bots Only 6 | 1 2 3 . 6 Max Kills in Single Turn 5 | 1 1 1 . 5 Gunslinging . | . . . . . Exploded 5 | . . 1 . 5 Melee . | . . . . . Uniques/NPCs Destroyed . | . . . . . Combat | -11 -10 -10 -10 -9 -------- Run | Yrd Mat Min Exi Min Hostile Shots Fired 84 | 3 39 35 . 7 Missed 25 | 1 13 10 . 1 Damage Taken 830 | 21 319 190 . 300 Core 253 | . 98 41 . 114 Absorbed by Shields . | . . . . . Redirected to Shielding 21 | . . 12 . 9 Core Remaining (%) 100 | 100 . . . . Volleys Fired 35 | 2 20 10 . 3 Largest 2 | 2 2 2 . 1 Hottest 120 | 60 120 53 . 100 Shots Fired 64 | 4 40 17 . 3 Gun 57 | 4 38 15 . . Cannon 3 | . . . . 3 Launcher 2 | . . 2 . . Special 2 | . 2 . . . Kinetic 55 | 2 38 15 . . Thermal 5 | . 2 . . 3 Explosive 2 | . . 2 . . Electromagnetic 2 | 2 . . . . Robot Hit Streak 6 | 3 6 4 . . Robot Miss Streak 7 | . 2 7 . 4 Penetration Max . | . . . . . Secondary Targets 1 | . 1 . . . Max Gunslinging Chain 1 | . 1 . . . Shots Hit Robots 33 | 3 25 5 . . Core Hits 26 | 2 9 6 . 9 Critical Kills 1 | . 1 . . . Critical Parts Destroyed . | . . . . . Critical Strikes 1 | . 1 . . . Destroy 1 | . 1 . . . Melee Attacks . | . . . . . Impact . | . . . . . Slashing . | . . . . . Piercing . | . . . . . Sneak Attacks . | . . . . . Combat Hostiles . | . . . . . Follow-up Attacks . | . . . . . Damage Inflicted 966 | 34 313 124 . 495 Guns 431 | 34 313 84 . . Cannons . | . . . . . Explosions 529 | . . 37 . 492 Melee . | . . . . . Ramming 6 | . . 3 . 3 Kinetic 405 | 8 313 84 . . Thermal 492 | . . . . 492 Explosive 37 | . . 37 . . Electromagnetic 26 | 26 . . . . Impact . | . . . . . Slashing . | . . . . . Piercing . | . . . . . Highest Corruption . | . . . . . Average Corruption . | . . . . . Corruption Purged . | . . . . . Corruption Blocked . | . . . . . Overload Shots . | . . . . . Overflow Damage 88 | . . . . 88 Projectiles . | . . . . . Explosions 88 | . . . . 88 Melee . | . . . . . Knockbacks . | . . . . . Impact . | . . . . . Kinetic . | . . . . . Secondary . | . . . . . Self-Inflicted Damage 65 | . . . . 65 Shots 1 | . . . . 1 Rammed . | . . . . . Targets Rammed 2 | . . 1 . 1 Kicked 2 | . . 1 . 1 Crushed . | . . . . . Highest Temperature 40 | 32 20 . . 40 Average Temperature 12 | 21 7 . . 24 Received Heat Transfer 214 | 12 162 . . 40 Siege Activations . | . . . . . Robots Corrupted . | . . . . . Combat Hostiles . | . . . . . Parts Fried . | . . . . . Impact Corruptions . | . . . . . Robots Melted . | . . . . . Combat Hostiles . | . . . . . Parts Melted . | . . . . . Heat Transferred 480 | . . . . 480 Parts Sabotaged . | . . . . . Parts Stolen . | . . . . . Parts Stripped . | . . . . . Power Chain Reactions . | . . . . . Alert | -11 -10 -10 -10 -9 ------- Run | Yrd Mat Min Exi Min Peak Influence 129 | 20 105 129 . 31 Initial 15 | . 13 15 . . Average 29 | 6 38 38 . 9 Maximum Alert Level . | . . . . . Low Security (%) 100 | 100 100 100 . 100 Level 1 . | . . . . . Level 2 . | . . . . . Level 3 . | . . . . . Level 4 . | . . . . . Level 5 . | . . . . . High Security . | . . . . . Max Security . | . . . . . Squads Dispatched 2 | . 2 . . . Investigation 2 | . 2 . . . Extermination . | . . . . . Reinforcement . | . . . . . Assault . | . . . . . Garrison . | . . . . . Intercept . | . . . . . Searches Triggered . | . . . . . Construction Impeded . | . . . . . Haulers Reinforced . | . . . . . Active Scanning Responses . | . . . . . Cargo Convoy Interrupts . | . . . . . Stealth | -11 -10 -10 -10 -9 --------- Run | Yrd Mat Min Exi Min Distress Signals . | . . . . . Communications Jammed . | . . . . . Distress Signals . | . . . . . Times Spotted 28 | 1 6 6 . 15 Peak Tracking Total 14 | 1 3 3 . 14 Tactical Retreats . | . . . . . Traps | -11 -10 -10 -10 -9 ------- Run | Yrd Mat Min Exi Min Traps Triggered . | . . . . . Indirectly . | . . . . . Trap Hack Attempts . | . . . . . Triggered . | . . . . . Disarmed . | . . . . . Reprogrammed . | . . . . . Reused . | . . . . . Traps Extracted . | . . . . . Installed . | . . . . . Triggered . | . . . . . Machines | -11 -10 -10 -10 -9 ---------- Run | Yrd Mat Min Exi Min Machines Disabled . | . . . . . Max in Single Turn . | . . . . . Machines Repaired . | . . . . . Machines Dismantled . | . . . . . Machines Sabotaged . | . . . . . Overloaded Fab Kills . | . . . . . Hacking | -11 -10 -10 -10 -9 --------- Run | Yrd Mat Min Exi Min Machines Accessed 7 | . 6 . . 1 Terminals 6 | . 5 . . 1 Fabricators . | . . . . . Repair Stations 1 | . 1 . . . Recycling Units . | . . . . . Scanalyzers . | . . . . . Garrison Access . | . . . . . Total Hacks 22 | . 20 . . 2 Successful 7 | . 5 . . 2 Failed 15 | . 15 . . . Catastrophic 3 | . 3 . . . Database Lockouts . | . . . . . Manual 13 | . 11 . 1 1 Terminals 18 | . 16 . . 2 Fabricators . | . . . . . Repair Stations 4 | . 4 . . . Recycling Units . | . . . . . Scanalyzers . | . . . . . Garrison Access . | . . . . . Terminal Hacks 7 | . 5 . . 2 Record 2 | . 1 . . 1 Part Schematic 1 | . 1 . . . Level Access Points 1 | . . . . 1 Branch Access Points 1 | . 1 . . . Emergency Access Points 1 | . 1 . . . Unreport Threat 1 | . 1 . . . Fabricator Hacks . | . . . . . Repair Station Hacks . | . . . . . Recycling Unit Hacks . | . . . . . Scanalyzer . | . . . . . Garrison Access Hacks . | . . . . . Unauthorized Hacks . | . . . . . Terminals . | . . . . . Fabricators . | . . . . . Repair Stations . | . . . . . Recycling Units . | . . . . . Scanalyzers . | . . . . . Garrison Access . | . . . . . Data Cores Recovered . | . . . . . Used . | . . . . . Hacking Detections 5 | . 5 . . . Full Trace Events 4 | . 4 . . . Feedback Events . | . . . . . Feedback Blocked . | . . . . . Robot Schematics Acquired . | . . . . . Robots Built . | . . . . . Authchips . | . . . . . Time . | . . . . . Total Robot Build Rating . | . . . . . Part Schematics Acquired 1 | . 1 . . . Parts Built . | . . . . . Authchips . | . . . . . Time . | . . . . . Total Part Build Rating . | . . . . . Parts Repaired . | . . . . . Time . | . . . . . Parts Recycled . | . . . . . Recycled Matter . | . . . . . Retrieved Matter . | . . . . . Retrieved Components . | . . . . . Parts Scanalyzed . | . . . . . Part Schematics Acquired . | . . . . . Parts Damaged . | . . . . . Bothacking | -11 -10 -10 -10 -9 ------------ Run | Yrd Mat Min Exi Min Used RIF Installer . | . . . . . Robots Hacked . | . . . . . Non-combat . | . . . . . Combat . | . . . . . Robot Hacks Applied . | . . . . . Relay Couplers Released . | . . . . . Fabnet Peak Effective % . | . . . . . Robots Rewired . | . . . . . Allies Hacked . | . . . . . Hacks Repelled . | . . . . . Allies | -11 -10 -10 -10 -9 -------- Run | Yrd Mat Min Exi Min Total Allies . | . . . . . Largest Group . | . . . . . Highest-Rated Group . | . . . . . Highest-Rated Ally . | . . . . . Total Orders . | . . . . . Ally Attacks . | . . . . . Total Damage . | . . . . . Kills . | . . . . . Allies Corrupted . | . . . . . Allies Melted . | . . . . . Intel | -11 -10 -10 -10 -9 ------- Run | Yrd Mat Min Exi Min Robot Analysis Total . | . . . . . Derelict Logs Recovered 1 | . . . . 1 Drone Launches . | . . . . . Drone Recoveries . | . . . . . Exploration | -11 -10 -10 -10 -9 ------------- Run | Yrd Mat Min Exi Min Turns Passed 1981 | 166 562 526 459 268 Spaces Moved 1355 | 138 387 408 287 135 Core 22 | 22 . . . . Treads . | . . . . . Legs 1321 | 104 387 408 287 135 Wheels 12 | 12 . . . . Hover . | . . . . . Flight . | . . . . . Fastest Speed 50 | 50 120 120 120 190 Average Speed 133 | 105 120 120 156 190 Slowest Speed 190 | 120 120 120 190 190 Overloaded Moves . | . . . . . Propulsion Burnouts . | . . . . . Robots Hopped . | . . . . . Cave-ins Triggered 1 | . . . . 1 Exploration Rate (%) 45 | 6 56 68 64 35 Regions Visited 4 Branch Regions 3 Pre-discovered Areas . | . . . . . Known Exits Taken 1 | . 1 . . . Unknown Exits Taken 3 | 1 . 1 1 . Scrap Searched 4 | . . 3 . 1 Spaces Dug 2 | . 2 . . . Terrain Destroyed 62 | . 2 14 . 46 Melee . | . . . . . Projectile 5 | . 2 . . 3 AOE 57 | . . 14 . 43 Terrain Rammed . | . . . . . Walls Destroyed . | . . . . . Machines Disabled . | . . . . . Actions | -11 -10 -10 -10 -9 --------- Run | Yrd Mat Min Exi Min Total 1460 | 153 441 427 299 140 Wait 12 | . 11 1 . . Move 1351 | 137 386 407 286 135 Hop . | . . . . . Pick Up 16 | 5 6 2 2 1 Fast Attach 11 | 3 4 2 2 . Attach 7 | 2 3 . 2 . Detach 3 | . 2 . 1 . Swap 6 | 2 3 1 . . Drop 17 | 2 6 3 6 . Fire 35 | 2 20 10 . 3 Melee . | . . . . . Ram . | . . . . . Kick 2 | . . 1 . 1 Crush . | . . . . . Escape Stasis . | . . . . . Rewire . | . . . . . Trap . | . . . . . Miscellaneous . | . . . . . Route ------- -11/Scrapyard -10/Materials (discovered 4 exits: [*Mat x2] / *Min x2) -10/Mines (discovered 3 exits: [*Mat x2] / *Exi) -10/Exiles -9/Mines (discovered 2 exits: *Mat x2) History --------- Turn | Location | Event 2 | -11/Scrapyard | Met Revision 17 108 | -11/Scrapyard | Discovered new exit (range 8) 167 | -11/Scrapyard | Entered Materials 239 | -10/Materials | Identified exit to Mines 323 | -10/Materials | Build established: Mutant 425 | -10/Materials | Discovered new exit (range 15) 622 | -10/Materials | Discovered new exit (range 12) 729 | -10/Materials | Entered Mines 784 | -10/Mines | Discovered new exit (range 14) 791 | -10/Mines | Received a Rocket Launcher from a helpful Derelict 911 | -10/Mines | Core integrity fell below 50% 1095 | -10/Mines | Discovered new exit (range 8) 1249 | -10/Mines | Deemed a non-threat by the Exiles lab entrance 1250 | -10/Mines | Discovered new exit (range 5) 1255 | -10/Mines | Entered Exiles 1284 | -10/Exiles | Met 8R-AWN 1305 | -10/Exiles | Met EX-HEX 1342 | -10/Exiles | Met EX-BIN 1356 | -10/Exiles | Aligned with FarCom system 1357 | -10/Exiles | Given EX-Vault access code 1391 | -10/Exiles | Opened EX-Vault 1408 | -10/Exiles | Found Prototype Device 1408 | -10/Exiles | Identified Trap Reconfigurator 1412 | -10/Exiles | Found Prototype Processor 1412 | -10/Exiles | Identified Modified TNC 1424 | -10/Exiles | Found Prototype Energy Cannon 1426 | -10/Exiles | Identified YOLO Cannon 1477 | -10/Exiles | Warned to stay clear of 0b10 Research branches 1579 | -10/Exiles | Met EX-DEC 1699 | -10/Exiles | Discovered new exit (range 10) 1714 | -10/Exiles | Left Exiles lab with YOLO Cannon 1714 | -10/Exiles | Entered Mines 1730 | -9/Mines | Identified exit to Materials 1910 | -9/Mines | Learned Materials terminal intel 1958 | -9/Mines | Assembled infested the area 1963 | -9/Mines | Assisted by a Guerilla fighting off Assembled 1979 | -9/Mines | Core integrity fell below 20% 1983 | -9/Mines | Crushed by falling debris 1983 | -9/Mines | Smashed by cave-in Last Messages --------------- 01974_ as-00901 destroyed. 01974_ VA-0F9(h): "I'll hold them off! Go on ahead or try to find another way!" 01974_ HV Slug penetrates Wall. 01976_ HV Slug penetrates as-77640. 01976_ as-77640 suffers critical hit (Destroy). 01976_ as-77640 destroyed. 01978_ T-07 Excavator suffers critical hit (Destroy). 01978_ T-07 Excavator destroyed. 01980_ Propulsion Shielding destroyed. 01980_ Knocked back. 01980_ HV Slug penetrates as-01185. 01980_ as-01185 suffers critical hit (Destroy). 01980_ as-01185 knocked back. 01982_ K-01 Serf collects debris. 01983_ The unstable cave ceiling collapses. 01983_ Crushed by falling debris. 01983_ Lgt. Ion Engine destroyed. 01983_ System corrupted by crushing effect (+1). Map ----- +----------------------------------------------------+ | ???###??## ##???????????????????????????????????? | | ??# ##???###????????????????????????????????????? | | ?# #??????????????????????????????????????????? | | # #??????????????????????????????????????????? | | #???????????????????????????????????????????? | | #????????????????????????????????????????????? | | #?????????????????????????????????????????????? | | #?????????????????????????????????????????????? | | #?????????????????????????????????????????????? | | ##?????????????????????????????????????????????? | | ###??????????????????????????????????????????????? | | #????????????????????????????????????????????????? | | ###########??????????????????????????????????????? | | #??????????????????????????????????????? | | ######### #??????????????????????????????????????? | | ????????# ##?######??????????###?????????????????? | | ???????## ### ##????????? #?????????????????? | | ???????# #####?????# #?????????????????? | | ?????### """ ##????# #?????????????????? | | ??? """ #????# #????##???????????? | | ?? """ #??### #### ##??????????? | | ?####### #### ###??# #??????????? | | ??????# ##??## #######t### ## #?????????? | | ??????# ##????##C k ### #????? #????????? | | ??????# ##??????# ####;;;;;## #???????????????? | | ??????## ????????# ###;@;;;; # #???????????????? | | ???????# ????????# ## aaa;## #???????????????? | | ???????# ?????????# ### ;# ##??????????????? | | ???????# ?????????# #?#;;; aa h""#????????????? | | ???????#??????????# #?## ;a% !% ; #???????????? | | ?????????????????? #??## ;;a=% ;##???????????? | | ?????????????????? ???### %% ;;#????????????? | | ?????????????????? ????# %% ; #????????????? | | ??????????????????# ????# a %;; #????????????? | | ??????????????????# ????# % ;##????????????? | | ?????????????????? ??? #????????????? | | ?????????????????? ???# ????????????? | | ?????????????????? ???# ???????????? | | ?????????????????? ??? ??????????? | | ???????????????????????? #" ###??????????? | | ????????????????????????### ##"###????????????? | | ??????????????????????????# #?????????????????? | | ?????????????????????????? ??????????????????? | | ??????????????????????????? ??????????????????? | | ?????????????????????????????????????????????????? | | ?????????????????????????????????????????????????? | | ?????????????????????????????????????????????????? | | ?????????????????????????????????????????????????? | | ?????????????????????????????????????????????????? | | ?????????????????????????????????????????????????? | +----------------------------------------------------+ Best States ------------- Heat Dissipation 35 Energy Generation 14 Energy Capacity 250 Matter Stores 300 Matter Capacity 300 Sight Range 16 Terrain Scan Density 10 Propulsion Shielding 33 Evasion (%) 55 Item Schematics ----------------- Grenade Launcher | -10/Materials | Hacked Robot Schematics ------------------ None Fabricated ------------ Nothing Alien Tech Used ----------------- None Achievements -------------- Quick And Dirty Challenges ------------ None Game ------ Seed OvertunedAnalysisSword Manual? 0 Play Time 00:29:28 Cumulative 11.6 hours Start 2024.10.12 @ 00:16:34 End 2024.10.12 @ 00:47:09 Sessions 1 Manual Loads 0 Difficulty Rogue Special Mode None Game No. 8 Rogue 2 Adventurer 6 Explorer 0 Win Type - Total 0 Types 0/0/0/0/0/0/0/0/0 Lore% 7 Gallery% 16 Achievement% 14 Wizard Run 0 Options --------- Layout 1 ASCII 0 Keyboard 0 Movement Arrows Keybinds 0 Fullscreen 2 Font 24/Tamsyn Map View 50x35 Zoom Use 0% Tactical HUD 1 Map Filters NONE Filters NONE Steam 1 RUN: 09447be3-407e-4fca-ae44-4ecf6ba13a83